bitfinex/quotes_BTCUSD_20250602
["timestamp","ask_amount","ask_price","bid_price","bid_amount"]
[1748857088029,0.66044364,104770.0,104760.0,0.21048962]
[1748857088238,0.2591722,104770.0,104760.0,0.21048962]
[1748857088527,0.66044364,104770.0,104760.0,0.21048962]
[1748857088749,0.66044364,104770.0,104760.0,0.22003506]
[1748857088963,0.66044364,104770.0,104760.0,0.21048962]
[1748857090769,0.66044364,104770.0,104760.0,0.22003506]
[1748857090975,0.66044364,104770.0,104760.0,0.22958041]
[1748857091174,0.64394364,104770.0,104760.0,0.23912558]
[1748857092357,0.66303188,104770.0,104760.0,0.24577996]
[1748857092592,0.65348781,104770.0,104760.0,0.24577996]
[1748857092826,0.63439893,104770.0,104760.0,0.20759847]
[1748857093044,0.63439893,104770.0,104760.0,0.20094391]
[1748857093263,0.63439893,104770.0,104760.0,0.19139847]
[1748857093503,0.64969893,104770.0,104760.0,0.20094409]
[1748857093713,0.64969893,104770.0,104760.0,0.21048962]
[1748857093840,0.64015431,104770.0,104760.0,0.19139847]
[1748857094039,0.64015431,104770.0,104760.0,0.20094409]
[1748857094241,0.64015431,104770.0,104760.0,0.01003153]
[1748857094494,0.64015431,104770.0,104760.0,0.19139847]
[1748857094695,0.62485431,104770.0,104760.0,0.200944]
[1748857094901,0.63439893,104770.0,104760.0,0.22003461]
[1748857095853,0.05177687,104770.0,104760.0,0.2617796]
[1748857096100,0.43395998,104770.0,104760.0,0.2617796]
[1748857096309,0.03268854,104770.0,104760.0,0.3754937]
[1748857096529,0.004,104770.0,104760.0,0.47947056]
[1748857096737,0.004,104770.0,104760.0,0.8194757]
[1748857096939,0.004,104770.0,104760.0,0.82617327]
[1748857097151,0.004,104770.0,104760.0,0.82313929]
[1748857097437,0.004,104770.0,104760.0,1.22441069]
[1748857097653,0.004,104770.0,104760.0,1.22441061]
[1748857097884,0.004,104770.0,104760.0,1.21771189]
[1748857098156,0.004,104770.0,104760.0,1.22441087]
[1748857098817,0.004,104770.0,104760.0,1.22441076]
[1748857099025,0.004,104770.0,104760.0,1.22441034]
[1748857099210,0.004,104770.0,104760.0,1.21438948]
[1748857099414,0.26765969,104810.0,104790.0,0.20994268]
[1748857099668,0.06163771,104810.0,104800.0,0.21946481]
[1748857099897,0.06163771,104810.0,104800.0,0.20992347]
[1748857099898,0.26200026,104810.0,104800.0,0.20992347]
[1748857100089,0.27800026,104810.0,104800.0,0.20038167]
[1748857100292,0.27800026,104810.0,104800.0,0.20992347]
[1748857100939,0.6792717,104810.0,104800.0,0.21040938]
[1748857101143,0.6822717,104810.0,104800.0,0.21040938]
[1748857101567,0.70675953,104810.0,104800.0,0.21040947]
[1748857101738,0.69721892,104810.0,104800.0,0.21040947]
[1748857102098,0.69721892,104810.0,104800.0,0.21140947]
[1748857102302,0.69167803,104810.0,104800.0,0.20186758]
[1748857102943,0.69167803,104810.0,104800.0,0.21140947]
[1748857103804,0.69167803,104810.0,104800.0,0.22095118]
[1748857104594,0.67567803,104810.0,104800.0,0.2304928]
[1748857105021,0.68521883,104810.0,104800.0,0.24003423]
[1748857105221,0.68521883,104810.0,104800.0,0.25503423]
[1748857105426,0.71631883,104810.0,104800.0,0.00148591]
[1748857105699,0.71631883,104810.0,104800.0,0.1923256]
[1748857106179,0.70021883,104810.0,104800.0,0.1923256]
[1748857107462,0.70021883,104810.0,104800.0,0.00148591]
[1748857107877,0.71571883,104810.0,104800.0,0.00148591]
[1748857109893,0.31444739,104810.0,104800.0,0.00148591]
[1748857110065,0.70021883,104810.0,104800.0,0.00148591]
[1748857111621,0.4960709,104810.0,104800.0,0.00148591]
[1748857112405,0.51515277,104810.0,104800.0,0.21140911]
[1748857112608,0.62071513,104810.0,104800.0,0.24689207]
[1748857112818,0.6302562,104810.0,104800.0,0.26339207]
[1748857113028,0.6302562,104810.0,104800.0,0.26339225]
[1748857113225,0.6302562,104810.0,104800.0,0.27293368]
[1748857113454,0.65462448,104810.0,104800.0,0.26339225]
[1748857113651,0.25335304,104810.0,104800.0,0.26339225]
[1748857113831,0.64508396,104810.0,104800.0,0.25385073]
[1748857114032,0.64508396,104810.0,104800.0,0.26339225]
[1748857114234,0.63554316,104810.0,104800.0,0.24430911]
[1748857115264,0.02436828,104810.0,104800.0,0.25385054]
[1748857115463,0.42989264,104810.0,104800.0,0.35924618]
[1748857115673,0.42035203,104810.0,104800.0,0.35924618]
[1748857115947,0.42989255,104810.0,104800.0,0.35924618]
[1748857116378,0.45448219,104810.0,104800.0,0.35924618]
[1748857116979,0.4544821,104810.0,104800.0,0.35924618]
[1748857117793,0.44494167,104810.0,104800.0,0.35924618]
[1748857119691,0.42586108,104810.0,104800.0,0.35924618]
[1748857120026,0.40127144,104820.0,104810.0,0.2512436]
[1748857120249,0.41081087,104820.0,104810.0,0.3470979]
[1748857120430,0.42035039,104820.0,104810.0,0.3470979]
[1748857120641,0.55940229,104830.0,104820.0,0.22896246]
[1748857120897,0.45482016,104830.0,104820.0,0.24486246]
[1748857121332,0.64560524,104830.0,104820.0,0.20988333]
[1748857121760,0.63606626,104830.0,104820.0,0.20988333]
[1748857122172,0.64006626,104830.0,104820.0,0.20988333]
[1748857123015,0.64306626,104830.0,104820.0,0.20988333]
[1748857123424,0.24179482,104830.0,104820.0,0.20988333]
[1748857123628,0.64306626,104830.0,104820.0,0.20988333]
[1748857125695,0.64306626,104830.0,104820.0,0.21942313]
[1748857125898,0.64306626,104830.0,104820.0,0.20988333]
[1748857126782,0.64306626,104830.0,104820.0,0.20034344]
[1748857126985,0.63352719,104830.0,104820.0,0.20034344]
[1748857127141,0.63352719,104830.0,104820.0,0.20988351]
[1748857127343,0.63352719,104830.0,104820.0,0.20034344]
[1748857127958,0.63352719,104830.0,104820.0,0.20988342]
[1748857129191,0.63352719,104830.0,104820.0,0.21942331]
[1748857130021,0.63352719,104830.0,104820.0,0.20988342]
[1748857130477,0.63352719,104830.0,104820.0,0.20034344]
[1748857131172,0.63352719,104830.0,104820.0,0.20988342]
[1748857132005,0.64306608,104830.0,104820.0,0.26166283]
[1748857132211,0.45228045,104830.0,104820.0,0.27120235]
[1748857132398,0.45228035,104830.0,104820.0,0.27120235]
[1748857132618,0.43320295,104830.0,104820.0,0.36705665]
[1748857132877,0.03193151,104830.0,104820.0,0.38489866]
[1748857133229,0.03193151,104830.0,104820.0,0.39158915]
[1748857133433,0.43320295,104830.0,104820.0,0.38489866]
[1748857133637,0.43320295,104830.0,104820.0,0.37374722]
[1748857134008,0.43320295,104830.0,104820.0,0.36705665]
[1748857134268,0.43320295,104830.0,104820.0,0.38489819]
[1748857134450,0.43320295,104830.0,104820.0,0.38489305]
[1748857134649,0.43320295,104830.0,104820.0,0.39158174]
[1748857134953,0.44274138,104830.0,104820.0,0.39158174]
[1748857135367,0.45228008,104830.0,104820.0,0.39158183]
[1748857135574,0.45228008,104830.0,104820.0,0.37374533]
[1748857135784,0.45228008,104830.0,104820.0,0.38489315]
[1748857135985,0.4522799,104830.0,104820.0,0.36705665]
[1748857136209,0.45227999,104830.0,104820.0,0.38489315]
[1748857136425,0.43320295,104830.0,104820.0,0.36705665]
[1748857136630,0.44274147,104830.0,104820.0,0.36705665]
[1748857136843,0.45228026,104830.0,104820.0,0.37374533]
[1748857137057,0.45228026,104830.0,104820.0,0.39158183]
[1748857137265,0.45228026,104830.0,104820.0,0.36705665]
[1748857137472,0.45228026,104830.0,104820.0,0.69434183]
[1748857137697,0.45228026,104830.0,104820.0,0.68764891]
[1748857137902,0.45228017,104830.0,104820.0,0.68764893]
[1748857138566,0.44274138,104830.0,104820.0,0.68764893]
[1748857138810,0.43320295,104830.0,104820.0,0.68764588]
[1748857139117,0.44274147,104830.0,104820.0,0.68764588]
[1748857139339,0.43320295,104830.0,104820.0,0.38488588]
[1748857139549,0.46181942,104830.0,104820.0,0.38488662]
[1748857139768,0.46181942,104830.0,104820.0,0.3848867]
[1748857139980,0.45228035,104830.0,104820.0,0.38488484]
[1748857140194,0.46181933,104830.0,104820.0,0.36705665]
[1748857140404,0.46181933,104830.0,104820.0,0.38488492]
[1748857140624,0.46181933,104830.0,104810.0,0.23186219]
[1748857140625,0.19080328,104820.0,104810.0,0.23186219]
[1748857140837,1.02196582,104820.0,104810.0,0.04071704]
[1748857141058,1.0124263,104820.0,104810.0,0.21819313]
[1748857141268,1.00288632,104820.0,104810.0,0.21819387]
[1748857141500,1.00288632,104820.0,104810.0,0.21819396]
[1748857141984,1.00288632,104820.0,104810.0,0.20990344]
[1748857142213,0.60161488,104820.0,104810.0,0.22773658]
[1748857142419,0.60161488,104820.0,104810.0,0.20990344]
[1748857142625,1.00488632,104820.0,104810.0,0.22773662]
[1748857142837,0.20990289,104810.0,104800.0,0.24210892]
[1748857143074,0.61117488,104810.0,104800.0,0.66520688]
[1748857143311,0.62071559,104810.0,104800.0,0.68429042]
[1748857143524,0.6302562,104810.0,104800.0,0.52142316]
[1748857143651,0.6302562,104810.0,104800.0,0.53765321]
[1748857143861,0.6312562,104810.0,104800.0,0.52935925]
[1748857144081,0.6312562,104810.0,104800.0,0.54719748]
[1748857144289,0.43089365,104810.0,104800.0,0.28561882]
[1748857144498,0.6312562,104810.0,104800.0,0.26911882]
[1748857144712,0.6312562,104810.0,104800.0,0.56234265]
[1748857144935,0.6312562,104810.0,104800.0,0.57188408]
[1748857145601,0.6312562,104810.0,104800.0,0.58838408]
[1748857146276,0.62171559,104810.0,104800.0,0.27608265]
[1748857146481,0.42135304,104810.0,104800.0,0.29516542]
[1748857146689,0.43089402,104810.0,104800.0,0.5978936]
[1748857147285,0.6217155,104810.0,104800.0,0.5978936]
[1748857147501,0.41181187,104810.0,104800.0,0.5978936]
[1748857147694,0.001,104810.0,104800.0,0.6937479]
[1748857147931,0.01054025,104810.0,104800.0,0.67590199]
[1748857148159,0.001,104810.0,104800.0,0.6937527]
[1748857148573,0.40227144,104810.0,104800.0,0.3910327]
[1748857148784,0.62797442,104810.0,104800.0,0.02503063]
[1748857148991,0.64297442,104810.0,104800.0,0.02503592]
[1748857149238,0.64297442,104810.0,104800.0,0.00048591]
[1748857154514,1.15464101,104810.0,104800.0,0.00048591]
[1748857154717,1.59032101,104810.0,104800.0,0.00048591]
[1748857155766,1.18904957,104810.0,104800.0,0.00048591]
[1748857157458,0.01908879,104770.0,104760.0,0.31216706]
[1748857157663,0.60171039,104770.0,104760.0,0.09773492]
[1748857157862,0.60171039,104770.0,104760.0,0.29686697]
[1748857158075,0.01908669,104780.0,104770.0,0.24298275]
[1748857158276,0.43944519,104780.0,104770.0,0.25252737]
[1748857158490,0.61124944,104790.0,104780.0,0.20996327]
[1748857158851,0.61129792,104790.0,104780.0,0.20996327]
[1748857159279,0.61129792,104790.0,104780.0,0.20041983]
[1748857159427,1.00302683,104790.0,104770.0,0.35038103]
[1748857159651,0.41048506,104780.0,104770.0,0.34838103]
[1748857160381,0.65987617,104780.0,104770.0,0.34838177]
[1748857160572,0.67896341,104780.0,104770.0,0.3058376]
[1748857160720,0.66941997,104780.0,104770.0,0.23562737]
[1748857160901,0.66941997,104780.0,104770.0,0.25122737]
[1748857161504,0.46900005,104780.0,104770.0,0.25222737]
[1748857161725,4.848e-05,104790.0,104780.0,0.25190643]
[1748857161959,4.848e-05,104790.0,104780.0,0.65052073]
[1748857162198,4.848e-05,104790.0,104780.0,0.66832285]
[1748857162416,4.848e-05,104790.0,104780.0,0.67499826]
[1748857162632,4.848e-05,104790.0,104780.0,0.67499786]
[1748857162835,4.848e-05,104790.0,104780.0,0.67499787]
[1748857163039,0.00104848,104790.0,104780.0,0.66932446]
[1748857163246,0.00104848,104790.0,104780.0,0.67600085]
[1748857163473,0.00104848,104790.0,104780.0,0.6760008]
[1748857163873,0.00104848,104790.0,104780.0,0.67600359]
[1748857164252,0.00104848,104790.0,104780.0,0.67600436]
[1748857164253,4.848e-05,104790.0,104780.0,0.67600436]
[1748857164469,4.848e-05,104790.0,104780.0,0.67600641]
[1748857164668,4.848e-05,104790.0,104780.0,0.66932849]
[1748857164920,4.848e-05,104790.0,104780.0,0.6760064]
[1748857165122,4.848e-05,104790.0,104780.0,0.65819864]
[1748857165322,4.848e-05,104790.0,104780.0,0.66933052]
[1748857165516,4.848e-05,104790.0,104780.0,0.65152073]
[1748857165713,4.848e-05,104790.0,104780.0,0.67600919]
[1748857165930,4.848e-05,104790.0,104780.0,0.67601179]
[1748857166165,4.848e-05,104790.0,104780.0,0.66933241]
[1748857166321,4.848e-05,104790.0,104780.0,0.6582001]
[1748857166543,4.848e-05,104790.0,104780.0,0.65152073]
[1748857166954,4.848e-05,104790.0,104780.0,0.67601177]
[1748857167195,4.848e-05,104790.0,104780.0,0.66487948]
[1748857167429,4.848e-05,104790.0,104780.0,0.65820011]
[1748857167974,4.848e-05,104790.0,104780.0,0.67601543]
[1748857168185,4.848e-05,104790.0,104780.0,0.67601547]
[1748857168398,4.848e-05,104790.0,104780.0,0.66488087]
[1748857168749,4.848e-05,104790.0,104780.0,0.65820011]
[1748857168951,4.848e-05,104790.0,104780.0,0.68270305]
[1748857169167,4.848e-05,104790.0,104780.0,0.68270306]
[1748857169397,4.848e-05,104790.0,104780.0,0.35544011]
[1748857169817,0.42040442,104790.0,104780.0,0.35544011]
[1748857170017,0.42040442,104790.0,104780.0,0.67598905]
[1748857170232,0.42040442,104790.0,104780.0,0.65816011]
[1748857170233,0.42040433,104790.0,104780.0,0.65816011]
[1748857170470,0.43948966,104790.0,104780.0,0.65027578]
[1748857170683,0.43948929,104790.0,104780.0,0.65027578]
[1748857170896,0.43948929,104790.0,104780.0,0.68137578]
[1748857171124,0.4394892,104790.0,104780.0,0.68137619]
[1748857171542,0.4394892,104790.0,104780.0,0.37865619]
[1748857171921,0.4394892,104790.0,104780.0,0.68137619]
[1748857172358,0.42040433,104790.0,104780.0,0.68137619]
[1748857172596,0.65001914,104800.0,104790.0,0.21953953]
[1748857172795,0.44009451,104800.0,104790.0,0.35728189]
[1748857172990,0.44963585,104800.0,104790.0,0.36682414]
[1748857173741,0.45917747,104800.0,104790.0,0.36682414]
[1748857173950,0.65001716,104800.0,104790.0,0.25476984]
[1748857174155,0.65101771,104800.0,104790.0,0.2006001]
[1748857174297,0.68311771,104800.0,104790.0,0.00019931]
[1748857177410,0.95373771,104800.0,104790.0,0.21968543]
[1748857177626,0.05890603,104800.0,104790.0,0.26907012]
[1748857177830,0.46017747,104800.0,104790.0,0.26907012]
[1748857178042,0.46971927,104800.0,104790.0,0.26907012]
[1748857178257,0.46017747,104800.0,104790.0,0.26907012]
[1748857178854,0.46971927,104800.0,104790.0,0.26907012]
[1748857179527,0.46017747,104800.0,104790.0,0.26907012]
[1748857180561,0.46971927,104800.0,104790.0,0.26907012]
[1748857181846,0.47926116,104800.0,104790.0,0.26907012]
[1748857182764,0.67010085,104800.0,104790.0,0.26907012]
[1748857182968,0.46971927,104800.0,104790.0,0.26907012]
[1748857183382,0.06844783,104800.0,104790.0,0.26907012]
[1748857183598,0.47926116,104800.0,104790.0,0.26907012]
[1748857183937,0.67010085,104800.0,104790.0,0.26907012]
[1748857185743,0.67010085,104800.0,104790.0,0.23877012]
[1748857185863,0.67964283,104800.0,104790.0,0.23877012]
[1748857186271,0.47926116,104800.0,104790.0,0.25457012]
[1748857186470,0.47926116,104800.0,104790.0,0.27037012]
[1748857187206,0.67010085,104800.0,104790.0,0.27037012]
[1748857187423,0.46017747,104800.0,104790.0,0.27037012]
[1748857187660,0.46971927,104800.0,104790.0,0.27037012]
[1748857188994,0.46971927,104800.0,104790.0,0.28822601]
[1748857189197,0.46001126,104800.0,104790.0,0.28822601]
[1748857189398,0.46955306,104800.0,104790.0,0.28822601]
[1748857189717,0.46955306,104800.0,104790.0,0.29492669]
[1748857189915,0.46955306,104800.0,104790.0,0.28822677]
[1748857190116,0.66039275,104800.0,104790.0,0.2949365]
[1748857190327,0.47909495,104800.0,104790.0,0.2949365]
[1748857191405,0.47909495,104800.0,104790.0,0.29493752]
[1748857191579,0.46001126,104800.0,104790.0,0.29493752]
[1748857191785,0.45046974,104800.0,104790.0,0.294949]
[1748857192192,0.45046974,104800.0,104790.0,0.29494956]
[1748857192401,0.46001117,104800.0,104790.0,0.27037012]
[1748857192649,0.4409284,104800.0,104790.0,0.29494952]
[1748857192856,0.45046956,104800.0,104790.0,0.29494952]
[1748857193053,0.4600109,104800.0,104790.0,0.29494952]
[1748857193496,0.04919812,104800.0,104790.0,0.29494991]
[1748857193694,0.4600109,104800.0,104790.0,0.29494991]
[1748857193811,0.4600109,104800.0,104790.0,0.29495042]
[1748857194020,0.4600109,104800.0,104790.0,0.28824844]
[1748857194222,0.4600109,104800.0,104790.0,0.29495281]
[1748857195298,0.47909404,104800.0,104790.0,0.27915337]
[1748857195532,0.48863593,104800.0,104790.0,0.25457021]
[1748857195739,0.48863593,104800.0,104790.0,0.27915529]
[1748857195946,0.48863593,104800.0,104790.0,0.27915465]
[1748857196152,0.66039312,104800.0,104790.0,0.21684765]
[1748857196358,0.66039312,104800.0,104790.0,0.23473065]
[1748857196584,0.66039312,104800.0,104790.0,0.23473076]
[1748857196808,0.66039312,104800.0,104790.0,0.2442732]
[1748857197037,0.66039312,104800.0,104790.0,0.24427349]
[1748857197284,0.66039312,104800.0,104790.0,0.23756756]
[1748857197510,0.66039312,104800.0,104790.0,0.24427349]
[1748857197991,0.66039312,104800.0,104790.0,0.25381583]
[1748857198400,0.66039312,104800.0,104790.0,0.25381608]
[1748857198820,0.66039312,104800.0,104790.0,0.23593334]
[1748857199041,0.66039312,104800.0,104790.0,0.2538165]
[1748857199274,0.66039312,104800.0,104790.0,0.25381914]
[1748857199921,0.66039312,104800.0,104790.0,0.2442768]
[1748857200117,0.46955343,104800.0,104790.0,0.2442768]
[1748857200361,0.6699351,104800.0,104790.0,0.26972034]
[1748857200566,0.4409284,104800.0,104790.0,0.29556259]
[1748857200710,0.46001099,104800.0,104790.0,0.30226964]
[1748857200907,0.03965696,104800.0,104790.0,0.29556248]
[1748857201124,0.45046956,104800.0,104790.0,0.29556248]
[1748857201337,0.4695527,104800.0,104790.0,0.29556248]
[1748857201546,0.4790945,104800.0,104790.0,0.29556248]
[1748857201759,0.47909431,104800.0,104790.0,0.29556243]
[1748857201974,0.47909431,104800.0,104790.0,0.21848587]
[1748857201975,0.65085141,104800.0,104790.0,0.21848587]
[1748857202185,0.28187997,104800.0,104790.0,0.21014281]
[1748857202412,0.68303833,104800.0,104790.0,0.24427828]
[1748857203554,0.66713833,104800.0,104790.0,0.22639252]
[1748857203765,0.66713833,104800.0,104790.0,0.02479199]
[1748857203981,0.68233833,104800.0,104790.0,0.02479195]
[1748857204228,0.68233833,104800.0,104790.0,0.0180849]
[1748857204436,1.59208492,104800.0,104790.0,0.0180849]
[1748857204642,1.93208492,104800.0,104790.0,0.00019931]
[1748857205686,1.12940595,104800.0,104790.0,0.00019931]
[1748857205889,1.53067739,104800.0,104790.0,0.00019931]
[1748857207088,1.93194883,104800.0,104790.0,0.00019931]
[1748857208785,0.20040061,104790.0,104780.0,0.0045468]
[1748857209089,1.00294349,104790.0,104780.0,0.0045468]
[1748857209298,1.04908434,104790.0,104780.0,0.0045468]
[1748857209416,1.14493864,104790.0,104780.0,0.0045468]
[1748857209624,1.48493864,104790.0,104780.0,0.0045468]
[1748857210035,1.48493864,104790.0,104780.0,0.0065468]
[1748857210526,1.48493864,104790.0,104780.0,0.0055468]
[1748857210733,1.27614936,104790.0,104780.0,0.0055468]
[1748857210937,0.68239576,104790.0,104780.0,0.0055468]
[1748857211143,1.48493864,104790.0,104780.0,0.0055468]
[1748857211573,1.48493864,104790.0,104780.0,0.0065468]
[1748857211769,1.48493864,104790.0,104780.0,0.0055468]
[1748857211987,1.48593864,104790.0,104780.0,0.0045468]
[1748857214552,1.51106034,104790.0,104780.0,0.0045468]
[1748857214667,1.48593864,104790.0,104780.0,0.0045468]
[1748857214868,1.39180936,104790.0,104780.0,0.0045468]
[1748857216151,1.69428936,104790.0,104780.0,0.0045468]
[1748857216977,1.70883021,104790.0,104780.0,0.0045468]
[1748857218026,1.74063021,104790.0,104780.0,0.0045468]
[1748857218930,1.74044609,104790.0,104780.0,0.0045468]
[1748857221704,1.83295731,104790.0,104780.0,0.0045468]
[1748857222155,0.200458,104760.0,104750.0,0.0318]
[1748857222361,1.020495,104760.0,104750.0,0.03194549]
[1748857222562,1.00300088,104760.0,104750.0,0.03194549]
[1748857223450,1.00300088,104760.0,104750.0,0.03494549]
[1748857224596,1.00300088,104760.0,104750.0,0.01834549]
[1748857224797,1.00300088,104760.0,104750.0,0.02134549]
[1748857224963,1.00300088,104760.0,104750.0,0.00614549]
[1748857225600,1.00300088,104760.0,104750.0,0.00014549]
[1748857225827,1.00300088,104760.0,104750.0,0.00114549]
[1748857226043,1.00300088,104760.0,104750.0,0.00214549]
[1748857226376,1.00300088,104760.0,104750.0,0.00114549]
[1748857226573,1.00300088,104760.0,104750.0,0.00014549]
[1748857226778,1.03226529,104760.0,104750.0,0.00014549]
[1748857229137,1.03326529,104760.0,104750.0,0.00014549]
[1748857230018,1.03326529,104760.0,104750.0,0.01554549]
[1748857230452,1.03326529,104760.0,104750.0,0.03064549]
[1748857231511,1.03326529,104760.0,104750.0,0.00014549]
[1748857232514,1.03326529,104760.0,104750.0,0.01664549]
[1748857232727,1.03326529,104760.0,104750.0,0.03224549]
[1748857235364,0.54266776,104760.0,104750.0,0.24226888]
[1748857235583,0.95348482,104760.0,104750.0,0.23272271]
[1748857235806,0.05889991,104760.0,104750.0,0.25181478]
[1748857236012,0.44045202,104760.0,104750.0,0.25181478]
[1748857236223,0.40227144,104760.0,104750.0,0.34766908]
[1748857236437,0.43090658,104760.0,104750.0,0.34766908]
[1748857236650,0.43090658,104760.0,104750.0,0.33812318]
[1748857236651,0.23009323,104760.0,104750.0,0.33812318]
[1748857236869,0.64091029,104760.0,104750.0,0.34766926]
[1748857237078,0.44045193,104760.0,104750.0,0.35721516]
[1748857238251,0.44999737,104760.0,104750.0,0.35721516]
[1748857239969,0.61227479,104760.0,104750.0,0.23272271]
[1748857240206,0.60272944,104760.0,104750.0,0.2327228]
[1748857240443,0.60272944,104760.0,104750.0,0.24226924]
[1748857240714,1.00400088,104760.0,104750.0,0.24226924]
[1748857240948,1.00400088,104760.0,104750.0,0.03224549]
[1748857244938,1.03297502,104760.0,104750.0,0.03224549]
[1748857250401,1.03297502,104760.0,104750.0,0.00014549]
[1748857252573,1.12841502,104760.0,104750.0,0.00014549]
[1748857253367,1.12841502,104760.0,104750.0,0.03264549]
[1748857255158,1.43065502,104760.0,104750.0,0.03264549]
[1748857264572,0.23043214,104760.0,104750.0,0.22357627]
[1748857264771,0.53259214,104760.0,104750.0,0.22357627]
[1748857264975,0.93386358,104760.0,104750.0,0.2331228]
[1748857265359,0.93386358,104760.0,104750.0,0.03264549]
[1748857265559,1.32558958,104760.0,104750.0,0.03264549]
[1748857266768,0.5230467,104760.0,104750.0,0.03264549]
[1748857266986,1.32558958,104760.0,104750.0,0.03264549]
[1748857269983,1.4181008,104760.0,104750.0,0.01624549]
[1748857270192,1.34013043,104760.0,104750.0,0.00014549]
[1748857270759,1.3720852,104760.0,104750.0,0.00014549]
[1748857271008,1.40548561,104760.0,104750.0,0.00014549]
[1748857271703,1.34013043,104760.0,104750.0,0.00014549]
[1748857272121,1.37352371,104760.0,104750.0,0.00014549]
[1748857272335,1.50132759,104760.0,104750.0,0.00014549]
[1748857272543,1.45168473,104760.0,104750.0,0.00014549]
[1748857272966,1.48407801,104760.0,104750.0,0.00014549]
[1748857273161,1.51802403,104760.0,104750.0,0.00014549]
[1748857273521,1.48807801,104760.0,104750.0,0.00014549]
[1748857274330,1.88679442,104760.0,104750.0,0.00014549]
[1748857274539,0.21006332,104730.0,104720.0,0.07624494]
[1748857274747,1.0126062,104730.0,104720.0,0.08299982]
[1748857274961,1.0126062,104730.0,104720.0,0.08523539]
[1748857275112,1.0126062,104730.0,104720.0,0.11663539]
[1748857275336,1.0126062,104730.0,104720.0,0.03144848]
[1748857275534,1.0126062,104730.0,104720.0,0.03444848]
[1748857276154,1.0126062,104730.0,104720.0,0.03144848]
[1748857276803,1.05079107,104730.0,104720.0,0.03144848]
[1748857278921,1.14611107,104730.0,104720.0,0.03144848]
[1748857280113,1.44815107,104730.0,104720.0,0.03144848]
[1748857285153,0.24824819,104730.0,104720.0,0.03144848]
[1748857285376,0.56934418,104730.0,104720.0,0.24153204]
[1748857285582,0.97061562,104730.0,104720.0,0.24153204]
[1748857285794,0.97061553,104730.0,104720.0,0.25108067]
[1748857285997,0.9610679,104730.0,104720.0,0.24153204]
[1748857286199,0.45855184,104730.0,104720.0,0.26062957]
[1748857286406,0.0572804,104730.0,104720.0,0.2701782]
[1748857286605,0.06682858,104730.0,104720.0,0.2701782]
[1748857286849,0.46810002,104730.0,104720.0,0.2701782]
[1748857287048,0.44900394,104730.0,104720.0,0.3660325]
[1748857287248,0.45855184,104730.0,104720.0,0.3660325]
[1748857287452,0.0477325,104730.0,104720.0,0.3660325]
[1748857287661,0.45855175,104730.0,104720.0,0.3660325]
[1748857288034,0.46809983,104730.0,104720.0,0.3660325]
[1748857288240,0.46809974,104730.0,104720.0,0.3660325]
[1748857289720,0.67816342,104730.0,104720.0,0.03144848]
[1748857289939,1.05079143,104730.0,104720.0,0.03144848]
[1748857290954,0.64951999,104730.0,104720.0,0.23198305]
[1748857291759,0.63997191,104730.0,104720.0,0.23198305]
[1748857291959,0.63042355,104730.0,104720.0,0.22243396]
[1748857292181,0.63042355,104730.0,104720.0,0.23198323]
[1748857292984,0.63042355,104730.0,104720.0,0.03144848]
[1748857293164,0.63042355,104730.0,104720.0,0.22243396]
[1748857293389,0.63042355,104730.0,104720.0,0.23198323]
[1748857298146,0.63042355,104730.0,104720.0,0.24153232]
[1748857298485,0.64951954,104730.0,104720.0,0.25108122]
[1748857298879,0.4585522,104730.0,104720.0,0.26062985]
[1748857299034,0.46810038,104730.0,104720.0,0.26062985]
[1748857299249,0.67816425,104730.0,104720.0,0.26062985]
[1748857299456,0.05728013,104730.0,104720.0,0.27017857]
[1748857299662,0.06682812,104730.0,104720.0,0.27017857]
[1748857299841,0.06682812,104730.0,104720.0,0.36603287]
[1748857299842,0.04773241,104730.0,104720.0,0.36603287]
[1748857300053,0.0477325,104730.0,104720.0,0.36603287]
[1748857300260,0.05728049,104730.0,104720.0,0.36603287]
[1748857300529,0.03818487,104730.0,104720.0,0.39282903]
[1748857300812,0.00954772,104730.0,104720.0,0.39952917]
[1748857301015,0.04282417,104770.0,104750.0,0.23197668]
[1748857301217,0.04282417,104770.0,104760.0,0.22241256]
[1748857301218,0.21952801,104770.0,104760.0,0.22241256]
[1748857301357,0.64447049,104770.0,104760.0,0.0315]
[1748857301565,0.00954535,104760.0,104750.0,0.20047722]
[1748857301809,0.00954535,104760.0,104750.0,0.0315]
[1748857301810,1.01254632,104760.0,104750.0,0.0315]
[1748857301965,1.01254632,104760.0,104750.0,0.22243078]
[1748857302260,1.01254632,104760.0,104750.0,0.23197731]
[1748857302469,1.01254632,104760.0,104750.0,0.23202579]
[1748857302645,1.01254632,104760.0,104750.0,0.24257223]
[1748857302852,1.01254632,104760.0,104750.0,0.25211858]
[1748857303063,1.01254632,104760.0,104750.0,0.25111858]
[1748857303260,1.31738632,104760.0,104750.0,0.25111858]
[1748857303518,0.40427144,104760.0,104750.0,0.27021065]
[1748857303735,0.42636132,104760.0,104750.0,0.27021065]
[1748857303977,0.4359063,104760.0,104750.0,0.27021065]
[1748857304406,0.44545174,104760.0,104750.0,0.27021065]
[1748857305075,0.45499727,104760.0,104750.0,0.27021065]
[1748857309180,1.01454641,104760.0,104750.0,0.03154848]
[1748857309385,1.01454641,104760.0,104750.0,0.22247926]
[1748857309637,1.01454641,104760.0,104750.0,0.23202579]
[1748857309844,1.01454641,104760.0,104750.0,0.24157223]
[1748857310030,1.00500097,104760.0,104750.0,0.24157223]
[1748857310387,0.99545544,104760.0,104750.0,0.03154848]
[1748857310983,0.99545544,104760.0,104750.0,0.23202579]
[1748857311215,0.99545544,104760.0,104750.0,0.03154848]
[1748857311970,0.99545544,104760.0,104750.0,0.22247926]
[1748857312149,1.02439189,104760.0,104750.0,0.22247926]
[1748857312356,1.02439189,104760.0,104750.0,0.03154848]
[1748857312868,1.02439189,104760.0,104750.0,0.22247926]
[1748857313728,1.02439189,104760.0,104750.0,0.23202579]
[1748857316447,1.02439189,104760.0,104750.0,0.24157223]
[1748857318001,1.02439189,104760.0,104750.0,0.25111858]
[1748857318754,0.62312045,104760.0,104750.0,0.25111858]
[1748857320080,0.43120789,104760.0,104750.0,0.25111858]
[1748857320283,0.62212045,104760.0,104750.0,0.25111858]
[1748857321110,1.02339189,104760.0,104750.0,0.25111858]
[1748857321931,1.02339189,104760.0,104750.0,0.03154848]
[1748857322346,1.02339189,104760.0,104750.0,0.23202579]
[1748857322792,1.02339189,104760.0,104750.0,0.24157223]
[1748857322999,1.02339189,104760.0,104750.0,0.25111858]
[1748857324062,1.02339189,104760.0,104750.0,0.03154848]
[1748857324278,1.02339189,104760.0,104750.0,0.2320257]
[1748857326005,1.02339189,104760.0,104750.0,0.03154848]
[1748857326210,1.02339189,104760.0,104750.0,0.22247926]
[1748857326426,1.02339189,104760.0,104750.0,0.03154848]
[1748857326640,1.03919189,104760.0,104750.0,4.848e-05]
[1748857326850,1.02339189,104760.0,104750.0,4.848e-05]
[1748857327064,1.02339189,104760.0,104750.0,0.01614848]
[1748857327264,1.02339189,104760.0,104750.0,0.03154848]
[1748857329903,1.02339189,104760.0,104750.0,4.848e-05]
[1748857330616,6.64709826,104760.0,104750.0,4.848e-05]
[1748857331457,6.55458704,104760.0,104750.0,4.848e-05]
[1748857332098,0.21004326,104740.0,104730.0,0.0304]